[Event "XIV American Continental-ch 2019"]
[Site "Sao Paulo"]
[Date "2019.07.10"]
[Round "8.7"]
[White "Quintiliano Pinto, Renato R."]
[Black "Gonzalez Vidal, Yuri"]
[Result "0-1"]
[ECO "D38"]
[WhiteElo "2443"]
[BlackElo "2547"]
[Annotator "ChessBase"]
[PlyCount "72"]
[EventDate "2019.07.05"]
[EventType "swiss"]
[EventCountry "BRA"]
[SourceTitle "playchess.com"]
[Source "ChessBase"]
[SourceQuality "1"]
[TimeControl "40/5400+30:1800+30"]

1. d4 {[%emt 0:05:13]} Nf6 {[%emt 0:00:00]} 2. c4 {[%emt 0:00:07]} e6 {[%emt 0:00:02]} 3. Nf3 {[%emt 0:00:09]} d5 {[%emt 0:00:19]} 4. Nc3 {[%emt 0:00:31]} Bb4 {[%emt 0:00:35]} 5. Qa4+ {[%emt 0:00:54]} Nc6 {[%emt 0:00:21]} 6. e3 {[%emt 0:00:13]} O-O {[%emt 0:00:33]} 7. Bd2 {[%emt 0:00:15]} Re8 {[%emt 0:02:48]} 8. Qc2 {[%emt 0:01:45]} a6 {[%emt 0:01:00]} 9. Rd1 {[%emt 0:11:50]} h6 {[%emt 0:02:11]} 10. h3 {[%emt 0:05:08]} Bd6 {[%emt 0:00:36]} 11. a3 {[%emt 0:10:42]} dxc4 {[%emt 0:07:20]} 12. Bxc4 {[%emt 0:00:20]} e5 {[%emt 0:15:59]} 13. d5 {[%emt 0:00:57]} Ne7 {[%emt 0:11:53]} 14. e4 {[%emt 0:09:09]} Ng6 {[%emt 0:01:16]} 15. Be3 {[%emt 0:02:25]} Bd7 {[%emt 0:03:10]} 16. Nd2 {[%emt 0:06:33]} Qe7 {[%emt 0:02:39]} 17. Be2 {[%emt 0:04:14]} Nf4 {[%emt 0:04:39]} 18. Bf1 {[%emt 0:00:11]} c6 {[%emt 0:09:53]} 19. dxc6 {[%emt 0:09:37]} Bxc6 {[%emt 0:00:11]} 20. Nc4 {[%emt 0:00:13]} Bc7 {[%emt 0:03:00]} 21. b4 {[%emt 0:11:55]} Rad8 {[%emt 0:03:35]} 22. Rxd8 {[%emt 0:04:09]} Rxd8 {[%emt 0:00:23]} 23. g3 {[%emt 0:00:15]} Qd7 {[%emt 0:10:31]} 24. gxf4 {[%emt 0:08:35]} exf4 {[%emt 0:03:27]} 25. Bb6 {[%emt 0:00:49]} Bxb6 {[%emt 0:01:33]} 26. Nxb6 {[%emt 0:00:33]} Qd4 {[%emt 0:00:16]} 27. Bg2 {[%emt 0:04:22]} Qxb6 {[%emt 0:00:59]} 28. O-O {[%emt 0:00:06]} Rd4 {[%emt 0:02:15]} 29. Re1 {[%emt 0:00:47]} Qd8 {[%emt 0:01:28]} 30. Qc1 {[%emt 0:01:42]} Rd3 {[%emt 0:04:09]} 31. Bf1 {[%emt 0:00:39]} Rd2 {[%emt 0:00:30]} 32. Re2 {[%emt 0:00:50]} Rxe2 {[%emt 0:01:29]} 33. Bxe2 {[%emt 0:00:03]} Qd4 {[%emt 0:01:08]} 34. Bf3 {[%emt 0:00:06]} Qd3 {[%emt 0:00:51]} 35. Bg2 {[%emt 0:00:03]} f3 {[%emt 0:01:08]} 36. Bf1 {[%emt 0:00:02]} Qd4 {[%emt 0:00:07]} 0-1

[Event "XIV American Continental-ch 2019"]
[Site "Sao Paulo"]
[Date "2019.07.10"]
[Round "8.8"]
[White "Leitao, Rafael"]
[Black "Escalante Ramirez, Brian Sebasti"]
[Result "1/2-1/2"]
[ECO "E71"]
[WhiteElo "2616"]
[BlackElo "2447"]
[Annotator "ChessBase"]
[PlyCount "93"]
[EventDate "2019.07.05"]
[EventType "swiss"]
[EventCountry "BRA"]
[SourceTitle "playchess.com"]
[Source "ChessBase"]
[SourceQuality "1"]
[TimeControl "40/5400+30:1800+30"]

1. d4 {[%emt 0:03:34]} Nf6 {[%emt 0:00:00]} 2. c4 {[%emt 0:00:05]} g6 {[%emt 0:00:00]} 3. Nc3 {[%emt 0:00:04]} Bg7 {[%emt 0:00:00]} 4. e4 {[%emt 0:00:10]} d6 {[%emt 0:00:00]} 5. h3 {[%emt 0:00:24]} O-O {[%emt 0:00:13]} 6. Be3 {[%emt 0:00:23]} c5 {[%emt 0:00:36]} 7. Nf3 {[%emt 0:02:03]} cxd4 {[%emt 0:17:12]} 8. Nxd4 {[%emt 0:00:49]} Nc6 {[%emt 0:00:02]} 9. Be2 {[%emt 0:01:25]} Bd7 {[%emt 0:00:07]} 10. O-O {[%emt 0:00:45]} Nxd4 {[%emt 0:00:32]} 11. Bxd4 {[%emt 0:00:08]} Bc6 {[%emt 0:00:15]} 12. Qc2 {[%emt 0:00:17]} a5 {[%emt 0:01:24]} 13. Rad1 {[%emt 0:01:20]} Qc7 {[%emt 0:05:56]} 14. b3 {[%emt 0:12:23]} b5 {[%emt 0:08:56]} 15. cxb5 {[%emt 0:10:24]} Bxe4 {[%emt 0:00:07]} 16. Bd3 {[%emt 0:00:18]} Bb7 {[%emt 0:03:16]} 17. Bxf6 {[%emt 0:02:22]} Bxf6 {[%emt 0:00:07]} 18. Nd5 {[%emt 0:00:35]} Qxc2 {[%emt 0:00:10]} 19. Nxf6+ {[%emt 0:00:07]} Kg7 {[%emt 0:00:07]} 20. Nh5+ {[%emt 0:01:04]} gxh5 {[%emt 0:02:33]} 21. Bxc2 {[%emt 0:00:05]} Rfc8 {[%emt 0:01:52]} 22. Bd3 {[%emt 0:00:25]} a4 {[%emt 0:08:14]} 23. Rfe1 {[%emt 0:14:59]} axb3 {[%emt 0:01:25]} 24. axb3 {[%emt 0:00:05]} Kf6 {[%emt 0:41:22]} 25. Bxh7 {[%emt 0:04:22]} d5 {[%emt 0:00:01]} 26. f4 {[%emt 0:06:26]} Ra2 {[%emt 0:04:24]} 27. Bd3 {[%emt 0:01:09]} Rc3 {[%emt 0:00:48]} 28. Bf1 {[%emt 0:22:34]} Rxb3 29. Rc1 {[%emt 0:02:47]} d4 {[%emt 0:01:38]} 30. Rc7 {[%emt 0:00:20]} Bxg2 {[%emt 0:02:51]} 31. Bc4 {[%emt 0:02:07]} Rc3 {[%emt 0:00:01]} 32. Bxa2 {[%emt 0:02:36]} Rxc7 {[%emt 0:00:01]} 33. Kxg2 {[%emt 0:00:19]} Rc2+ {[%emt 0:00:15]} 34. Kf3 {[%emt 0:00:12]} Rxa2 {[%emt 0:00:02]} 35. Rb1 {[%emt 0:00:07]} Kf5 {[%emt 0:01:26]} 36. b6 {[%emt 0:00:07]} Ra3+ {[%emt 0:00:03]} 37. Ke2 {[%emt 0:00:42]} Ra8 {[%emt 0:02:00]} 38. b7 {[%emt 0:00:15]} Rb8 {[%emt 0:00:01]} 39. Kf3 {[%emt 0:04:36]} f6 {[%emt 0:00:51]} 40. Rb5+ {[%emt 0:00:45]} e5 {[%emt 0:00:05]} 41. fxe5 {[%emt 0:30:10]} fxe5 {[%emt 0:30:02]} 42. h4 {[%emt 0:00:07]} d3 {[%emt 0:01:15]} 43. Ke3 {[%emt 0:00:58]} Kg4 {[%emt 0:00:00]} 44. Kxd3 {[%emt 0:00:00]} Kxh4 {[%emt 0:00:00]} 45. Ke4 {[%emt 0:00:00]} Kg3 {[%emt 0:00:00]} 46. Kxe5 {[%emt 0:00:00]} h4 {[%emt 0:00:00]} 47. Kd6 {[%emt 0:00:00]} 1/2-1/2

[Event "XIV American Continental-ch 2019"]
[Site "Sao Paulo"]
[Date "2019.07.10"]
[Round "8.9"]
[White "Mieles Palau, Daniel"]
[Black "Mecking, Henrique"]
[Result "1/2-1/2"]
[ECO "A15"]
[WhiteElo "2359"]
[BlackElo "2576"]
[Annotator "RC"]
[PlyCount "57"]
[EventDate "2019.07.05"]
[EventType "swiss"]
[EventCountry "BRA"]
[TimeControl "40/5400+30:1800+30"]

1. c4 {[%emt 0:00:00]} Nf6 {[%emt 0:02:53]} 2. Nf3 {[%emt 0:00:43]} g6 {[%emt 0:00:14]} 3. b3 {[%emt 0:01:19]} Bg7 {[%emt 0:00:09]} 4. Bb2 {[%emt 0:00:10]} c5 {[%emt 0:00:51]} 5. g3 {[%emt 0:01:52]} b6 {[%emt 0:01:00]} 6. Bg2 {[%emt 0:00:44]} Bb7 {[%emt 0:00:05]} 7. O-O {[%emt 0:02:14]} O-O {[%emt 0:00:08]} 8. d4 {[%emt 0:03:02]} cxd4 {[%emt 0:00:50]} 9. Qxd4 {[%emt 0:00:18]} d6 {[%emt 0:00:57]} 10. Nc3 {[%emt 0:01:19]} Ne4 {[%emt 0:11:29]} 11. Qe3 {[%emt 0:00:58]} Nxc3 {[%emt 0:00:03]} 12. Bxc3 {[%emt 0:00:06]} Bxc3 {[%emt 0:00:04]} 13. Qxc3 {[%emt 0:00:06]} Nd7 {[%emt 0:00:11]} 14. Nh4 {[%emt 0:01:24]} Qc7 {[%emt 0:01:07]} 15. Rfd1 {[%emt 0:10:59]} Nf6 {[%emt 0:06:49]} 16. Rac1 {[%emt 0:05:12]} Rac8 {[%emt 0:00:34]} 17. Qe3 {[%emt 0:15:31]} Rfe8 {[%emt 0:06:14]} 18. b4 {[%emt 0:06:20]} Bxg2 {[%emt 0:03:20]} 19. Nxg2 {[%emt 0:00:14]} Qb7 {[%emt 0:00:19]} 20. Rd4 {[%emt 0:09:42]} d5 {[%emt 0:07:48]} 21. cxd5 {[%emt 0:04:36]} Nxd5 {[%emt 0:01:16]} 22. Rxc8 {[%emt 0:01:31]} Rxc8 {[%emt 0:00:05]} 23. Qd2 {[%emt 0:00:04]} Nf6 {[%emt 0:01:20]} 24. Ne3 {[%emt 0:02:54]} h5 {[%emt 0:11:12]} 25. f3 {[%emt 0:05:09]} Qc7 {[%emt 0:12:27]} 26. Rc4 {[%emt 0:01:26]} Qb7 {[%emt 0:00:21]} 27. Rd4 {[%emt 0:00:07]} Qc7 {[%emt 0:02:11]} 28. Rc4 {[%emt 0:00:05]} Qb7 {[%emt 0:00:16]} 29. Rd4 {[%emt 0:00:07]} 1/2-1/2

[Event "XIV American Continental-ch 2019"]
[Site "Sao Paulo"]
[Date "2019.07.11"]
[Round "8.10"]
[White "Languidey, Simon Alejandro"]
[Black "Lima, Darcy"]
[Result "0-1"]
[ECO "C65"]
[WhiteElo "2427"]
[BlackElo "2543"]
[Annotator "ChessBase"]
[PlyCount "102"]
[EventDate "2019.07.05"]
[EventType "swiss"]
[EventCountry "BRA"]
[SourceTitle "playchess.com"]
[Source "ChessBase"]
[SourceQuality "1"]
[TimeControl "40/5400+30:1800+30"]

1. e4 {[%emt 0:00:00]} e5 {[%emt 0:02:48]} 2. Nf3 {[%emt 0:00:00]} Nc6 {[%emt 0:00:12]} 3. Bb5 {[%emt 0:00:00]} Nf6 {[%emt 0:00:19]} 4. Qe2 {[%emt 0:00:03]} Bc5 {[%emt 0:05:47]} 5. c3 {[%emt 0:01:04]} O-O {[%emt 0:01:12]} 6. O-O {[%emt 0:00:12]} d6 {[%emt 0:06:06]} 7. d3 {[%emt 0:00:31]} Qe7 {[%emt 0:15:14]} 8. Bg5 {[%emt 0:15:07]} h6 {[%emt 0:01:25]} 9. Bh4 {[%emt 0:00:31]} Nb8 {[%emt 0:00:43]} 10. Nbd2 {[%emt 0:03:51]} c6 {[%emt 0:02:52]} 11. Ba4 {[%emt 0:00:55]} Nbd7 {[%emt 0:02:30]} 12. b4 {[%emt 0:07:02]} Bb6 {[%emt 0:00:17]} 13. Bb3 {[%emt 0:05:01]} Re8 {[%emt 0:00:39]} 14. Nc4 {[%emt 0:02:10]} Bc7 {[%emt 0:00:05]} 15. Ne3 {[%emt 0:00:11]} Nf8 {[%emt 0:00:13]} 16. Bg3 {[%emt 0:08:25]} Nh5 {[%emt 0:05:58]} 17. Nxe5 {[%emt 0:05:29]} Nxg3 {[%emt 0:00:30]} 18. fxg3 {[%emt 0:00:28]} Qxe5 {[%emt 0:16:33]} 19. Bxf7+ {[%emt 0:00:18]} Kh8 {[%emt 0:00:03]} 20. Bxe8 {[%emt 0:01:04]} Qxe8 {[%emt 0:00:03]} 21. d4 {[%emt 0:04:15]} Be6 {[%emt 0:00:30]} 22. Rae1 {[%emt 0:00:44]} Qd7 {[%emt 0:01:08]} 23. Kh1 {[%emt 0:05:58]} Re8 {[%emt 0:01:01]} 24. Qh5 {[%emt 0:02:10]} Kg8 {[%emt 0:06:14]} 25. c4 {[%emt 0:04:55]} Bf7 {[%emt 0:01:35]} 26. Qf3 {[%emt 0:01:09]} Nh7 {[%emt 0:01:45]} 27. h4 {[%emt 0:04:57]} Bd8 {[%emt 0:04:24]} 28. d5 {[%emt 0:04:46]} Bg6 {[%emt 0:03:57]} 29. Nf5 {[%emt 0:04:03]} cxd5 {[%emt 0:00:06]} 30. cxd5 {[%emt 0:00:44]} Bf6 {[%emt 0:08:59]} 31. Qf2 {[%emt 0:03:44]} Bc3 {[%emt 0:06:07]} 32. Re2 {[%emt 0:06:19]} Nf6 {[%emt 0:00:25]} 33. Qf3 {[%emt 0:03:36]} Be5 {[%emt 0:01:31]} 34. g4 {[%emt 0:02:35]} Rc8 {[%emt 0:00:39]} 35. g5 {[%emt 0:02:07]} Bh5 {[%emt 0:01:06]} 36. Qf2 {[%emt 0:00:53]} Bxe2 {[%emt 0:01:21]} 37. Qxe2 {[%emt 0:00:07]} hxg5 {[%emt 0:00:57]} 38. hxg5 {[%emt 0:00:08]} Nh7 {[%emt 0:01:28]} 39. Qg4 {[%emt 0:01:39]} Rc7 {[%emt 0:00:22]} 40. Qh5 {[%emt 0:01:36]} Qb5 {[%emt 0:01:56]} 41. Kg1 {[%emt 0:31:08]} Nf8 {[%emt 0:15:08]} 42. g6 {[%emt 0:00:00]} Bf6 {[%emt 0:00:24]} 43. Nh6+ {[%emt 0:00:00]} gxh6 {[%emt 0:00:06]} 44. Rxf6 {[%emt 0:00:00]} Qb6+ {[%emt 0:08:26]} 45. Kh2 {[%emt 0:00:00]} Qd4 {[%emt 0:00:07]} 46. Rf5 {[%emt 0:00:00]} Qg7 {[%emt 0:01:14]} 47. e5 {[%emt 0:00:00]} dxe5 {[%emt 0:00:27]} 48. Qf3 {[%emt 0:00:00]} Nxg6 {[%emt 0:00:38]} 49. d6 {[%emt 0:00:00]} Rd7 {[%emt 0:00:23]} 50. Qd5+ {[%emt 0:00:00]} Kh7 {[%emt 0:00:06]} 51. Qe6 {[%emt 0:00:00]} Nf4 {[%emt 0:01:39]} 0-1

[Event "XIV American Continental-ch 2019"]
[Site "Sao Paulo"]
[Date "2019.07.10"]
[Round "8.11"]
[White "Barbosa, Evandro Amorim"]
[Black "Garcia Cardenas, Pablo"]
[Result "1-0"]
[ECO "C78"]
[WhiteElo "2506"]
[BlackElo "2443"]
[Annotator "ChessBase"]
[PlyCount "55"]
[EventDate "2019.07.05"]
[EventType "swiss"]
[EventCountry "BRA"]
[SourceTitle "playchess.com"]
[Source "ChessBase"]
[SourceQuality "1"]
[TimeControl "40/5400+30:1800+30"]

1. e4 {[%emt 0:04:27]} e5 {[%emt 0:00:00]} 2. Nf3 {[%emt 0:00:15]} Nc6 {[%emt 0:00:00]} 3. Bb5 {[%emt 0:01:07]} a6 {[%emt 0:00:00]} 4. Ba4 {[%emt 0:00:10]} Nf6 {[%emt 0:00:00]} 5. O-O {[%emt 0:00:28]} b5 {[%emt 0:00:03]} 6. Bb3 {[%emt 0:00:08]} Bc5 {[%emt 0:00:04]} 7. c3 {[%emt 0:00:43]} d6 8. d4 {[%emt 0:00:29]} Bb6 {[%emt 0:00:46]} 9. a4 {[%emt 0:00:42]} Rb8 {[%emt 0:00:06]} 10. a5 {[%emt 0:00:39]} Ba7 {[%emt 0:00:30]} 11. h3 {[%emt 0:00:30]} O-O {[%emt 0:08:51]} 12. Be3 {[%emt 0:00:59]} Ra8 13. Nbd2 {[%emt 0:01:35]} h6 {[%emt 0:14:07]} 14. Re1 {[%emt 0:02:03]} Re8 {[%emt 0:01:02]} 15. Nf1 {[%emt 0:01:57]} exd4 {[%emt 0:02:25]} 16. cxd4 {[%emt 0:00:40]} Nb4 {[%emt 0:17:23]} 17. Qd2 {[%emt 0:14:28]} c5 {[%emt 0:00:53]} 18. Ng3 {[%emt 0:01:24]} Bb7 {[%emt 0:16:45]} 19. Bxh6 {[%emt 0:21:36]} Nxe4 {[%emt 0:00:24]} 20. Rxe4 Bxe4 21. Bxg7 {[%emt 0:19:04]} Kxg7 {[%emt 0:16:40]} 22. Nh5+ {[%emt 0:00:11]} Kf8 {[%emt 0:02:18]} 23. Qh6+ {[%emt 0:00:44]} Ke7 {[%emt 0:00:05]} 24. Bxf7 {[%emt 0:00:40]} Kd7 25. Bxe8+ {[%emt 0:04:02]} Kc7 {[%emt 0:12:25]} 26. Qg7+ {[%emt 0:01:11]} Kb8 {[%emt 0:00:17]} 27. Re1 {[%emt 0:06:24]} d5 {[%emt 0:03:08]} 28. Bg6 {[%emt 0:02:54]} 1-0

[Event "XIV American Continental-ch 2019"]
[Site "Sao Paulo"]
[Date "2019.07.10"]
[Round "8.12"]
[White "Duran Vega, Sergio"]
[Black "Di Berardino, Diego Rafael"]
[Result "1-0"]
[ECO "D72"]
[WhiteElo "2364"]
[BlackElo "2506"]
[Annotator "ChessBase"]
[PlyCount "59"]
[EventDate "2019.07.05"]
[EventType "swiss"]
[EventCountry "BRA"]
[SourceTitle "playchess.com"]
[Source "ChessBase"]
[SourceQuality "1"]
[TimeControl "40/5400+30:1800+30"]

1. d4 {[%emt 0:00:00]} Nf6 {[%emt 0:00:00]} 2. c4 {[%emt 0:00:00]} g6 {[%emt 0:00:41]} 3. g3 {[%emt 0:00:21]} Bg7 {[%emt 0:00:30]} 4. Bg2 {[%emt 0:00:19]} d5 {[%emt 0:00:35]} 5. cxd5 {[%emt 0:00:18]} Nxd5 {[%emt 0:00:06]} 6. e4 {[%emt 0:00:15]} Nb6 {[%emt 0:00:29]} 7. Ne2 {[%emt 0:00:04]} c5 {[%emt 0:00:55]} 8. d5 {[%emt 0:00:14]} O-O {[%emt 0:00:09]} 9. O-O {[%emt 0:00:09]} e6 {[%emt 0:00:13]} 10. Nbc3 {[%emt 0:00:33]} Na6 {[%emt 0:01:35]} 11. Nf4 {[%emt 0:00:18]} e5 {[%emt 0:00:31]} 12. Nh3 {[%emt 0:00:59]} Nc4 {[%emt 0:03:44]} 13. Qe2 {[%emt 0:00:45]} Nd6 {[%emt 0:01:20]} 14. f4 {[%emt 0:01:07]} Bxh3 {[%emt 0:15:34]} 15. Bxh3 {[%emt 0:00:06]} c4 {[%emt 0:00:02]} 16. f5 {[%emt 0:09:18]} Nc5 {[%emt 0:07:45]} 17. Qf3 {[%emt 0:18:15]} Nd3 {[%emt 0:15:13]} 18. f6 {[%emt 0:15:11]} Bh8 {[%emt 0:00:04]} 19. Nd1 {[%emt 0:24:34]} Nb5 {[%emt 0:23:08]} 20. Bg5 {[%emt 0:05:45]} Nd4 {[%emt 0:00:17]} 21. Qg2 {[%emt 0:02:15]} h6 {[%emt 0:06:40]} 22. Bxh6 {[%emt 0:01:55]} Bxf6 {[%emt 0:00:03]} 23. Bxf8 {[%emt 0:02:05]} Kxf8 {[%emt 0:00:04]} 24. Ne3 {[%emt 0:03:51]} b5 {[%emt 0:00:51]} 25. Be6 {[%emt 0:00:22]} Kg7 {[%emt 0:05:08]} 26. Ng4 {[%emt 0:04:31]} fxe6 {[%emt 0:09:35]} 27. Rxf6 {[%emt 0:00:03]} Qe7 {[%emt 0:01:29]} 28. Raf1 {[%emt 0:01:23]} Rh8 {[%emt 0:00:33]} 29. dxe6 {[%emt 0:06:32]} Nxe6 {[%emt 0:00:08]} 30. Rf7+ {[%emt 0:00:47]} 1-0

[Event "XIV American Continental-ch 2019"]
[Site "Sao Paulo"]
[Date "2019.07.10"]
[Round "8.15"]
[White "Vazquez, Guillermo"]
[Black "Fernandez Reyes, Lisandro"]
[Result "1-0"]
[ECO "B12"]
[WhiteElo "2483"]
[BlackElo "2378"]
[Annotator "RC"]
[PlyCount "81"]
[EventDate "2019.07.05"]
[EventType "swiss"]
[EventCountry "BRA"]
[TimeControl "40/5400+30:1800+30"]

1. e4 {[%emt 0:00:00]} c6 {[%emt 0:00:18]} 2. d4 {[%emt 0:00:00]} g6 {[%emt 0:00:14]} 3. Nf3 {[%emt 0:00:39]} Bg7 {[%emt 0:00:13]} 4. h3 {[%emt 0:01:20]} d6 {[%emt 0:01:44]} 5. c4 {[%emt 0:03:23]} Nf6 {[%emt 0:03:18]} 6. Nc3 {[%emt 0:00:09]} O-O {[%emt 0:00:45]} 7. Be2 {[%emt 0:04:05]} e5 {[%emt 0:01:23]} 8. d5 {[%emt 0:01:17]} Na6 {[%emt 0:03:44]} 9. Be3 {[%emt 0:06:59]} Nc5 {[%emt 0:05:51]} 10. Nd2 {[%emt 0:00:48]} a5 {[%emt 0:01:54]} 11. O-O {[%emt 0:03:59]} Bd7 {[%emt 0:04:39]} 12. b3 {[%emt 0:07:44]} Na6 {[%emt 0:02:10]} 13. a3 {[%emt 0:06:00]} Ne8 {[%emt 0:12:26]} 14. b4 {[%emt 0:12:04]} f5 {[%emt 0:03:34]} 15. dxc6 {[%emt 0:07:28]} bxc6 {[%emt 0:02:07]} 16. bxa5 {[%emt 0:00:48]} Qxa5 {[%emt 0:06:49]} 17. Nb3 {[%emt 0:01:08]} Qd8 {[%emt 0:00:13]} 18. c5 {[%emt 0:04:23]} f4 {[%emt 0:01:27]} 19. Bc1 {[%emt 0:00:19]} Be6 {[%emt 0:07:29]} 20. cxd6 {[%emt 0:04:25]} Nxd6 {[%emt 0:02:39]} 21. Bxa6 {[%emt 0:01:41]} Rxa6 {[%emt 0:00:59]} 22. Nc5 {[%emt 0:00:12]} Bc4 {[%emt 0:01:07]} 23. Nxa6 {[%emt 0:00:41]} Bxa6 {[%emt 0:00:10]} 24. Re1 {[%emt 0:00:40]} f3 {[%emt 0:02:16]} 25. Re3 {[%emt 0:04:06]} fxg2 {[%emt 0:00:42]} 26. Kxg2 {[%emt 0:00:22]} Bh6 {[%emt 0:00:43]} 27. Rf3 {[%emt 0:03:57]} Bf4 {[%emt 0:00:25]} 28. Kh1 {[%emt 0:05:10]} Qe7 {[%emt 0:06:21]} 29. Rb1 {[%emt 0:01:42]} Nc4 {[%emt 0:01:26]} 30. a4 {[%emt 0:01:51]} g5 {[%emt 0:04:30]} 31. Kg1 {[%emt 0:02:06]} Kh8 {[%emt 0:05:02]} 32. Ne2 {[%emt 0:01:43]} Qg7 {[%emt 0:03:43]} 33. Ng3 {[%emt 0:01:41]} g4 {[%emt 0:02:47]} 34. hxg4 {[%emt 0:00:27]} Qxg4 {[%emt 0:00:51]} 35. Rb4 {[%emt 0:03:07]} Qg7 {[%emt 0:05:17]} 36. Rc3 {[%emt 0:01:32]} c5 {[%emt 0:00:38]} 37. Rb1 {[%emt 0:01:12]} Qf6 {[%emt 0:00:58]} 38. Rf3 {[%emt 0:00:39]} Rg8 {[%emt 0:02:17]} 39. Rbb3 {[%emt 0:02:58]} Na5 {[%emt 0:01:32]} 40. Rxf4 {[%emt 0:01:10]} Rd8 {[%emt 0:03:39]} 41. Rb8 {[%emt 0:30:30]} 1-0

[Event "XIV American Continental-ch 2019"]
[Site "Sao Paulo"]
[Date "2019.07.11"]
[Round "8.16"]
[White "Roselli Mailhe, Bernardo"]
[Black "Della Morte, German"]
[Result "1-0"]
[ECO "A41"]
[WhiteElo "2471"]
[BlackElo "2359"]
[Annotator "ChessBase"]
[PlyCount "107"]
[EventDate "2019.07.05"]
[EventType "swiss"]
[EventCountry "BRA"]
[SourceTitle "playchess.com"]
[Source "ChessBase"]
[SourceQuality "1"]
[TimeControl "40/5400+30:1800+30"]

1. d4 {[%emt 0:00:00]} d6 {[%emt 0:02:05]} 2. c4 {[%emt 0:00:43]} e5 {[%emt 0:00:15]} 3. Nf3 {[%emt 0:00:05]} e4 {[%emt 0:00:27]} 4. Nfd2 {[%emt 0:00:16]} f5 {[%emt 0:06:06]} 5. e3 {[%emt 0:00:05]} Nf6 {[%emt 0:00:07]} 6. Nc3 {[%emt 0:01:20]} g6 {[%emt 0:02:38]} 7. f3 {[%emt 0:06:14]} exf3 {[%emt 0:05:27]} 8. Nxf3 {[%emt 0:01:48]} Bg7 {[%emt 0:09:09]} 9. Bd3 {[%emt 0:00:08]} O-O {[%emt 0:00:44]} 10. O-O {[%emt 0:00:05]} Nc6 {[%emt 0:02:15]} 11. a3 {[%emt 0:04:24]} a5 {[%emt 0:10:30]} 12. b3 {[%emt 0:03:11]} Re8 {[%emt 0:01:14]} 13. Ra2 {[%emt 0:11:03]} Ne4 {[%emt 0:02:04]} 14. Bxe4 {[%emt 0:03:51]} fxe4 {[%emt 0:00:06]} 15. Ne1 {[%emt 0:00:03]} Bf5 {[%emt 0:03:25]} 16. Raf2 {[%emt 0:06:43]} Qg5 {[%emt 0:07:40]} 17. Rf4 {[%emt 0:09:07]} h5 {[%emt 0:01:36]} 18. Nd5 {[%emt 0:05:54]} Rac8 {[%emt 0:00:56]} 19. h4 {[%emt 0:01:27]} Qg3 {[%emt 0:01:34]} 20. Rxf5 {[%emt 0:12:03]} gxf5 {[%emt 0:00:13]} 21. Qxh5 {[%emt 0:00:22]} Rf8 {[%emt 0:03:13]} 22. Nc2 {[%emt 0:00:33]} Qg4 {[%emt 0:03:19]} 23. Qxg4 {[%emt 0:00:49]} fxg4 {[%emt 0:00:04]} 24. Rxf8+ {[%emt 0:00:24]} Rxf8 {[%emt 0:02:17]} 25. Bd2 {[%emt 0:00:40]} Bf6 {[%emt 0:01:41]} 26. Be1 {[%emt 0:00:49]} Bd8 {[%emt 0:00:51]} 27. Kh2 {[%emt 0:05:41]} Rf7 {[%emt 0:07:27]} 28. Nc3 {[%emt 0:08:26]} Ne7 {[%emt 0:06:43]} 29. Nxe4 {[%emt 0:01:16]} Nf5 {[%emt 0:00:14]} 30. g3 {[%emt 0:00:08]} c6 {[%emt 0:01:58]} 31. Kg2 {[%emt 0:11:34]} Kg7 {[%emt 0:01:34]} 32. Nf2 {[%emt 0:01:53]} Nh6 {[%emt 0:00:11]} 33. Bd2 {[%emt 0:00:16]} d5 {[%emt 0:01:43]} 34. Ne1 {[%emt 0:01:31]} Kg6 {[%emt 0:04:42]} 35. e4 {[%emt 0:01:50]} dxe4 {[%emt 0:00:53]} 36. Bxh6 {[%emt 0:00:29]} Kxh6 {[%emt 0:00:07]} 37. Nxg4+ {[%emt 0:00:05]} Kg7 {[%emt 0:02:04]} 38. a4 {[%emt 0:01:25]} Bb6 {[%emt 0:05:45]} 39. c5 {[%emt 0:00:54]} Bc7 {[%emt 0:00:22]} 40. Ne3 {[%emt 0:01:22]} b6 {[%emt 0:01:44]} 41. cxb6 {[%emt 0:08:06]} Bxb6 {[%emt 0:00:07]} 42. g4 {[%emt 0:00:44]} Kf6 {[%emt 0:07:44]} 43. Nf5 {[%emt 0:02:41]} Rd7 {[%emt 0:01:40]} 44. Kg3 {[%emt 0:05:24]} Bxd4 {[%emt 0:08:53]} 45. Kf4 {[%emt 0:00:41]} Bf2 {[%emt 0:00:42]} 46. Ng2 {[%emt 0:01:04]} e3 {[%emt 0:03:20]} 47. g5+ {[%emt 0:05:43]} Ke6 {[%emt 0:12:06]} 48. Ke4 {[%emt 0:02:00]} Rb7 {[%emt 0:00:05]} 49. Nf4+ {[%emt 0:00:27]} Kd7 {[%emt 0:00:04]} 50. g6 {[%emt 0:01:28]} Rb4+ {[%emt 0:01:20]} 51. Kf3 {[%emt 0:00:06]} Ke8 {[%emt 0:01:14]} 52. Ne6 {[%emt 0:02:09]} Rb8 {[%emt 0:02:37]} 53. h5 {[%emt 0:00:56]} Bg1 {[%emt 0:00:39]} 54. h6 {[%emt 0:01:41]} 1-0

[Event "XIV American Continental-ch 2019"]
[Site "Sao Paulo"]
[Date "2019.07.10"]
[Round "8.17"]
[White "Perdomo, Leandro"]
[Black "Santos, Marcus Vinicius More"]
[Result "1-0"]
[ECO "A42"]
[WhiteElo "2468"]
[BlackElo "2354"]
[Annotator "ChessBase"]
[PlyCount "55"]
[EventDate "2019.07.05"]
[EventType "swiss"]
[EventCountry "BRA"]
[SourceTitle "playchess.com"]
[Source "ChessBase"]
[SourceQuality "1"]
[TimeControl "40/5400+30:1800+30"]

1. d4 g6 {[%emt 0:00:00]} 2. c4 {[%emt 0:00:00]} Bg7 {[%emt 0:00:00]} 3. Nc3 {[%emt 0:00:00]} d6 {[%emt 0:00:10]} 4. e4 {[%emt 0:00:00]} e5 {[%emt 0:00:19]} 5. d5 {[%emt 0:06:19]} a5 {[%emt 0:00:51]} 6. Bd3 {[%emt 0:04:01]} Na6 {[%emt 0:00:43]} 7. Nge2 {[%emt 0:00:38]} Qh4 {[%emt 0:01:29]} 8. Qa4+ {[%emt 0:22:49]} Bd7 {[%emt 0:02:35]} 9. Qxa5 {[%emt 0:05:53]} Nf6 {[%emt 0:06:36]} 10. O-O {[%emt 0:19:21]} O-O {[%emt 0:04:19]} 11. Nb5 {[%emt 0:01:13]} Nc5 {[%emt 0:05:10]} 12. Qc3 Nfxe4 {[%emt 0:01:56]} 13. Bxe4 {[%emt 0:09:51]} Bxb5 {[%emt 0:05:44]} 14. cxb5 {[%emt 0:02:45]} Qxe4 {[%emt 0:00:16]} 15. Be3 {[%emt 0:01:13]} Qxd5 {[%emt 0:51:57]} 16. Rfd1 {[%emt 0:00:03]} Qe6 {[%emt 0:00:15]} 17. b4 {[%emt 0:01:45]} Rxa2 {[%emt 0:10:04]} 18. bxc5 {[%emt 0:03:44]} Rxe2 {[%emt 0:00:06]} 19. cxd6 e4 {[%emt 0:01:54]} 20. Qxc7 {[%emt 0:05:10]} Bxa1 {[%emt 0:00:34]} 21. Rxa1 {[%emt 0:00:02]} Qe5 {[%emt 0:04:36]} 22. Rd1 {[%emt 0:00:33]} Ra8 {[%emt 0:00:17]} 23. Qc4 {[%emt 0:03:56]} Rb2 {[%emt 0:01:08]} 24. d7 {[%emt 0:00:51]} Rd8 {[%emt 0:00:28]} 25. Qc8 {[%emt 0:10:12]} Qf6 {[%emt 0:00:10]} 26. b6 {[%emt 0:00:46]} Kg7 {[%emt 0:00:50]} 27. h4 {[%emt 0:01:29]} h6 {[%emt 0:00:31]} 28. Bd4 {[%emt 0:00:17]} 1-0